[Event "Swedish Chess Championship 2021: Sverigemastarklassen"]
[Site "Scandic Helsingborg Nord, Florettgatan 41, Helsingborg, Sweden"]
[Date "2021.07.03"]
[Round "1.1"]
[White "Wiedenkeller, Michael"]
[Black "Blomqvist, Erik"]
[Result "1/2-1/2"]
[TimeControl "90 minutes for 40 moves + 30 minutes for the rest of the game + 30 seconds per move from move one."]
[WhiteTitle "IM"]
[BlackTitle "GM"]
[WhiteFideId "1700146"]
[BlackFideId "1709437"]
[WhiteElo "2445"]
[BlackElo "2535"]

1. d4 {[%clk 01:30:35]} {[%emt 00:00:23]} Nf6 {[%clk 01:30:52]} {[%emt
00:00:09]} 2. c4 {[%clk 01:30:44]} {[%emt 00:00:21]} e6 {[%clk 01:31:14]}
{[%emt 00:00:08]} 3. Nc3 {[%clk 01:30:35]} {[%emt 00:00:39]} Bb4 {[%clk
01:31:29]} {[%emt 00:00:15]} 4. Qc2 {[%clk 01:28:51]} {[%emt 00:02:14]} O-O
{[%clk 01:31:16]} {[%emt 00:00:43]} 5. Nf3 {[%clk 01:27:19]} {[%emt 00:02:01]}
c5 {[%clk 01:30:42]} {[%emt 00:01:03]} 6. dxc5 {[%clk 01:26:15]} {[%emt
00:01:35]} Na6 {[%clk 01:30:38]} {[%emt 00:00:33]} 7. g3 {[%clk 01:25:02]}
{[%emt 00:01:43]} Nxc5 {[%clk 01:30:17]} {[%emt 00:00:52]} 8. Bg2 {[%clk
01:24:58]} {[%emt 00:00:33]} b6 {[%clk 01:26:26]} {[%emt 00:04:21]} 9. O-O
{[%clk 01:23:40]} {[%emt 00:01:48]} Bb7 {[%clk 01:26:48]} {[%emt 00:00:08]} 10.
Nb5 {[%clk 01:21:33]} {[%emt 00:02:37]} Be4 {[%clk 01:26:53]} {[%emt 00:00:25]}
11. Qd1 {[%clk 01:21:38]} {[%emt 00:00:25]} Nb7 {[%clk 01:27:10]} {[%emt
00:00:13]} 12. a3 {[%clk 01:14:43]} {[%emt 00:07:25]} Be7 {[%clk 01:27:00]}
{[%emt 00:00:40]} 13. Bf4 {[%clk 01:14:02]} {[%emt 00:01:11]} Rc8 {[%clk
01:25:00]} {[%emt 00:02:30]} 14. Rc1 {[%clk 01:13:44]} {[%emt 00:00:47]} a6
{[%clk 01:25:03]} {[%emt 00:00:27]} 15. Nc3 {[%clk 01:07:49]} {[%emt 00:06:25]}
Bc6 {[%clk 01:21:42]} {[%emt 00:03:51]} 16. b4 {[%clk 00:56:41]} {[%emt
00:11:37]} a5 {[%clk 01:21:14]} {[%emt 00:00:59]} 17. Qb3 {[%clk 00:46:00]}
{[%emt 00:11:11]} axb4 {[%clk 01:21:20]} {[%emt 00:00:24]} 18. axb4 {[%clk
00:46:01]} {[%emt 00:00:29]} Nd6 {[%clk 01:21:23]} {[%emt 00:00:27]} 19. Nd2
{[%clk 00:41:21]} {[%emt 00:05:10]} Bxg2 {[%clk 01:15:15]} {[%emt 00:06:39]} 20.
Kxg2 {[%clk 00:41:06]} {[%emt 00:00:44]} Qc7 {[%clk 01:08:16]} {[%emt
00:07:28]} 21. Kg1 {[%clk 00:36:56]} {[%emt 00:04:41]} Qc6 {[%clk 01:04:00]}
{[%emt 00:04:46]} 22. b5 {[%clk 00:34:42]} {[%emt 00:02:44]} Qb7 {[%clk
01:01:25]} {[%emt 00:03:06]} 23. Rfd1 {[%clk 00:31:59]} {[%emt 00:03:13]} Ra8
{[%clk 00:54:06]} {[%emt 00:07:47]} 24. Ra1 {[%clk 00:26:12]} {[%emt 00:06:17]}
Rfc8 {[%clk 00:45:08]} {[%emt 00:09:28]} 25. Ra4 {[%clk 00:24:39]} {[%emt
00:02:04]} Rxa4 {[%clk 00:33:38]} {[%emt 00:12:01]} 26. Nxa4 {[%clk 00:24:05]}
{[%emt 00:01:03]} Nde4 {[%clk 00:25:39]} {[%emt 00:08:28]} 27. Nxe4 {[%clk
00:22:12]} {[%emt 00:02:24]} Nxe4 {[%clk 00:26:04]} {[%emt 00:00:05]} 28. Be3
{[%clk 00:21:57]} {[%emt 00:00:44]} Bc5 {[%clk 00:22:18]} {[%emt 00:04:18]} 29.
Nxc5 {[%clk 00:15:50]} {[%emt 00:06:38]} Nxc5 {[%clk 00:22:42]} {[%emt
00:00:06]} 30. Bxc5 {[%clk 00:16:03]} {[%emt 00:00:16]} Rxc5 {[%clk 00:23:07]}
{[%emt 00:00:05]} 31. Qd3 {[%clk 00:15:13]} {[%emt 00:01:20]} d5 {[%clk
00:23:07]} {[%emt 00:00:31]} 32. e4 {[%clk 00:13:50]} {[%emt 00:01:52]} Qd7
{[%clk 00:16:11]} {[%emt 00:07:26]} 33. exd5 {[%clk 00:13:17]} {[%emt
00:01:04]} exd5 {[%clk 00:16:35]} {[%emt 00:00:06]} 34. cxd5 {[%clk 00:13:14]}
{[%emt 00:00:31]} Rxb5 {[%clk 00:17:02]} {[%emt 00:00:04]} 35. d6 {[%clk
00:10:30]} {[%emt 00:03:14]} Rc5 {[%clk 00:12:55]} {[%emt 00:04:37]} 36. Qe3
{[%clk 00:03:50]} {[%emt 00:07:09]} Kf8 {[%clk 00:09:18]} {[%emt 00:04:08]} 37.
Ra1 {[%clk 00:02:37]} {[%emt 00:01:39]} f5 {[%clk 00:04:14]} {[%emt 00:05:37]}
38. Ra8+ {[%clk 00:00:44]} {[%emt 00:02:24]} Kf7 {[%clk 00:04:40]} {[%emt
00:00:04]} 39. Qb3+ {[%clk 00:00:56]} {[%emt 00:00:17]} Kg6 {[%clk 00:03:28]}
{[%emt 00:01:42]} 40. Qxb6 {[%clk 00:00:34]} {[%emt 00:00:54]} Rc6 {[%clk
00:01:25]} {[%emt 00:02:32]} 41. Qe3 {[%clk 00:26:20]} {[%emt 00:04:44]} Rxd6
{[%clk 00:30:14]} {[%emt 00:01:41]} 42. h4 {[%clk 00:24:53]} {[%emt 00:01:56]}
h6 {[%clk 00:30:01]} {[%emt 00:00:44]} 43. Kh2 {[%emt 00:03:49]} 1/2-1/2

[Event "Swedish Chess Championship 2021: Sverigemastarklassen"]
[Site "Scandic Helsingborg Nord, Florettgatan 41, Helsingborg, Sweden"]
[Date "2021.07.03"]
[Round "1.2"]
[White "Westerberg, Jonathan"]
[Black "Hector, Jonny"]
[Result "1-0"]
[TimeControl "90 minutes for 40 moves + 30 minutes for the rest of the game + 30 seconds per move from move one."]
[WhiteTitle "GM"]
[BlackTitle "GM"]
[WhiteFideId "1701754"]
[BlackFideId "1700090"]
[WhiteElo "2534"]
[BlackElo "2479"]

1. e4 {[%clk 01:30:37]} {[%emt 00:00:22]} e5 {[%clk 01:30:48]} {[%emt
00:00:12]} 2. Nf3 {[%clk 01:30:17]} {[%emt 00:00:50]} Nc6 {[%clk 01:31:13]}
{[%emt 00:00:05]} 3. Nc3 {[%clk 01:30:08]} {[%emt 00:00:39]} Nf6 {[%clk
01:31:22]} {[%emt 00:00:20]} 4. Be2 {[%clk 01:29:49]} {[%emt 00:00:50]} d5
{[%clk 01:29:18]} {[%emt 00:02:33]} 5. exd5 {[%clk 01:29:27]} {[%emt 00:00:51]}
Nxd5 {[%clk 01:29:39]} {[%emt 00:00:09]} 6. O-O {[%clk 01:29:13]} {[%emt
00:00:45]} Nxc3 {[%clk 01:28:44]} {[%emt 00:01:25]} 7. dxc3 {[%clk 01:29:05]}
{[%emt 00:00:39]} Qxd1 {[%clk 01:20:52]} {[%emt 00:08:22]} 8. Rxd1 {[%clk
01:29:25]} {[%emt 00:00:10]} Bd6 {[%clk 01:16:41]} {[%emt 00:04:41]} 9. Be3
{[%clk 01:27:18]} {[%emt 00:02:38]} f5 {[%clk 01:11:58]} {[%emt 00:05:13]} 10.
b4 {[%clk 01:26:01]} {[%emt 00:01:48]} b6 {[%clk 01:02:54]} {[%emt 00:09:34]}
11. a4 {[%clk 01:16:08]} {[%emt 00:10:23]} f4 {[%clk 00:53:54]} {[%emt
00:09:29]} 12. Bc1 {[%clk 01:13:59]} {[%emt 00:02:41]} Bb7 {[%clk 00:46:14]}
{[%emt 00:08:10]} 13. a5 {[%clk 01:10:14]} {[%emt 00:04:15]} O-O-O {[%clk
00:46:15]} {[%emt 00:00:28]} 14. a6 {[%clk 01:02:47]} {[%emt 00:07:58]} Ba8
{[%clk 00:46:39]} {[%emt 00:00:06]} 15. Re1 {[%clk 00:58:43]} {[%emt 00:04:35]}
e4 {[%clk 00:41:52]} {[%emt 00:05:16]} 16. Ng5 {[%clk 00:57:08]} {[%emt
00:02:05]} Be5 {[%clk 00:41:54]} {[%emt 00:00:27]} 17. Ra3 {[%clk 00:56:23]}
{[%emt 00:01:16]} Rhe8 {[%clk 00:31:44]} {[%emt 00:10:38]} 18. Nf7 {[%clk
00:46:37]} {[%emt 00:10:16]} Rd5 {[%clk 00:29:30]} {[%emt 00:02:43]} 19. b5
{[%clk 00:43:57]} {[%emt 00:03:11]} Re7 {[%clk 00:23:59]} {[%emt 00:06:00]} 20.
Bg4+ {[%clk 00:43:36]} {[%emt 00:00:51]} Kb8 {[%clk 00:24:17]} {[%emt
00:00:13]} 21. bxc6 {[%clk 00:43:55]} {[%emt 00:00:11]} Bf6 {[%clk 00:23:08]}
{[%emt 00:01:38]} 22. c4 {[%clk 00:23:44]} {[%emt 00:20:43]} Rc5 {[%clk
00:22:11]} {[%emt 00:01:25]} 23. Nd8 {[%clk 00:22:55]} {[%emt 00:01:19]} g5
{[%clk 00:19:38]} {[%emt 00:03:03]} 24. h4 {[%clk 00:21:40]} {[%emt 00:01:45]}
h6 {[%clk 00:14:14]} {[%emt 00:05:53]} 25. hxg5 {[%clk 00:17:33]} {[%emt
00:04:38]} hxg5 {[%clk 00:14:20]} {[%emt 00:00:23]} 26. Rh3 {[%clk 00:16:37]}
{[%emt 00:01:25]} Rxc4 {[%clk 00:11:47]} {[%emt 00:03:05]} 27. Rh6 {[%clk
00:15:55]} {[%emt 00:01:11]} Bc3 {[%clk 00:08:32]} {[%emt 00:03:45]} 28. Rd1
{[%clk 00:14:09]} {[%emt 00:02:16]} e3 {[%clk 00:06:00]} {[%emt 00:03:01]} 29.
Nb7 {[%clk 00:12:18]} {[%emt 00:02:22]} Re8 {[%clk 00:05:42]} {[%emt 00:00:47]}
30. Re6 {[%clk 00:09:13]} {[%emt 00:03:36]} Rh8 {[%clk 00:04:55]} {[%emt
00:01:16]} 31. Be2 {[%clk 00:07:26]} {[%emt 00:02:19]} exf2+ {[%clk 00:03:50]}
{[%emt 00:01:35]} 32. Kxf2 {[%clk 00:07:44]} {[%emt 00:00:12]} Ra4 {[%clk
00:02:45]} {[%emt 00:01:34]} 33. Rd7 {[%clk 00:05:33]} {[%emt 00:02:41]} Bxb7
{[%clk 00:01:00]} {[%emt 00:02:15]} 34. cxb7 {[%clk 00:03:08]} {[%emt
00:02:56]} Bb4 {[%clk 00:01:16]} {[%emt 00:00:13]} 35. Bd3 {[%clk 00:01:25]}
{[%emt 00:02:14]} Rg8 {[%clk 00:00:45]} {[%emt 00:01:01]} 36. Bb2 {[%clk
00:00:59]} {[%emt 00:00:57]} Bc5+ {[%clk 00:00:50]} {[%emt 00:00:23]} 37. Ke2
{[%clk 00:01:26]} {[%emt 00:00:04]} Bd6 {[%clk 00:00:41]} {[%emt 00:00:39]} 38.
Be5 {[%clk 00:01:10]} {[%emt 00:00:45]} Bxe5 {[%clk 00:00:50]} {[%emt
00:00:21]} 39. Rxe5 {[%clk 00:01:37]} {[%emt 00:00:03]} g4 {[%clk 00:00:57]}
{[%emt 00:00:22]} 40. Red5 {[%clk 00:01:38]} {[%emt 00:00:30]} 1-0

[Event "Swedish Chess Championship 2021: Sverigemastarklassen"]
[Site "Scandic Helsingborg Nord, Florettgatan 41, Helsingborg, Sweden"]
[Date "2021.07.03"]
[Round "1.3"]
[White "Cramling, Pia"]
[Black "Storme, Isak"]
[Result "1/2-1/2"]
[TimeControl "90 minutes for 40 moves + 30 minutes for the rest of the game + 30 seconds per move from move one."]
[WhiteTitle "GM"]
[BlackTitle "FM"]
[WhiteFideId "1700030"]
[BlackFideId "1728113"]
[WhiteElo "2459"]
[BlackElo "2397"]

1. Nf3 {[%clk 01:30:52]} {[%emt 00:00:06]} Nf6 {[%clk 01:30:36]} {[%emt
00:00:26]} 2. c4 {[%clk 01:30:51]} {[%emt 00:00:31]} c5 {[%clk 01:30:25]}
{[%emt 00:00:41]} 3. Nc3 {[%clk 01:30:28]} {[%emt 00:00:52]} d5 {[%clk
01:30:27]} {[%emt 00:00:29]} 4. cxd5 {[%clk 01:29:07]} {[%emt 00:01:50]} Nxd5
{[%clk 01:30:44]} {[%emt 00:00:14]} 5. e3 {[%clk 01:25:43]} {[%emt 00:03:53]}
Nxc3 {[%clk 01:27:56]} {[%emt 00:03:19]} 6. bxc3 {[%clk 01:25:48]} {[%emt
00:00:25]} g6 {[%clk 01:27:22]} {[%emt 00:01:04]} 7. Bb5+ {[%clk 01:18:48]}
{[%emt 00:07:30]} Bd7 {[%clk 01:22:10]} {[%emt 00:05:42]} 8. a4 {[%clk
01:18:27]} {[%emt 00:00:51]} Bg7 {[%clk 01:19:38]} {[%emt 00:03:02]} 9. O-O
{[%clk 01:13:54]} {[%emt 00:05:04]} O-O {[%clk 01:06:48]} {[%emt 00:13:20]} 10.
Ba3 {[%clk 01:12:16]} {[%emt 00:02:08]} Qc7 {[%clk 00:52:53]} {[%emt 00:14:25]}
11. d4 {[%clk 01:10:26]} {[%emt 00:02:20]} b6 {[%clk 00:47:20]} {[%emt
00:06:03]} 12. Qe2 {[%clk 00:50:49]} {[%emt 00:20:05]} Nc6 {[%clk 00:37:10]}
{[%emt 00:10:42]} 13. dxc5 {[%clk 00:44:53]} {[%emt 00:06:27]} Ne5 {[%clk
00:27:46]} {[%emt 00:09:53]} 14. Nxe5 {[%clk 00:39:01]} {[%emt 00:06:22]} Bxb5
{[%clk 00:24:32]} {[%emt 00:03:45]} 15. axb5 {[%clk 00:37:32]} {[%emt
00:01:58]} Bxe5 {[%clk 00:24:50]} {[%emt 00:00:12]} 16. f4 {[%clk 00:34:30]}
{[%emt 00:03:31]} Bf6 {[%clk 00:20:34]} {[%emt 00:04:46]} 17. c6 {[%clk
00:34:04]} {[%emt 00:00:56]} a6 {[%clk 00:19:58]} {[%emt 00:01:07]} 18. bxa6
{[%clk 00:31:36]} {[%emt 00:02:58]} Qxc6 {[%clk 00:19:56]} {[%emt 00:00:31]} 19.
Bb4 {[%clk 00:31:25]} {[%emt 00:00:41]} b5 {[%clk 00:18:46]} {[%emt 00:01:40]}
20. a7 {[%clk 00:19:30]} {[%emt 00:12:24]} Qb6 {[%clk 00:18:07]} {[%emt
00:01:08]} 21. Qf2 {[%clk 00:18:45]} {[%emt 00:01:16]} Rfc8 {[%clk 00:15:16]}
{[%emt 00:03:21]} 22. e4 {[%clk 00:15:04]} {[%emt 00:04:09]} Qxf2+ {[%clk
00:15:31]} {[%emt 00:00:17]} 23. Kxf2 {[%clk 00:15:07]} {[%emt 00:00:27]} Bxc3
{[%clk 00:15:06]} {[%emt 00:00:57]} 24. Bxc3 {[%clk 00:15:11]} {[%emt
00:00:25]} Rxc3 {[%clk 00:15:29]} {[%emt 00:00:06]} 25. Rfb1 {[%clk 00:15:20]}
{[%emt 00:00:21]} Rc7 {[%clk 00:15:34]} {[%emt 00:00:25]} 26. Rxb5 {[%clk
00:15:36]} {[%emt 00:00:16]} Raxa7 {[%clk 00:15:38]} {[%emt 00:00:26]} 27. Rxa7
{[%clk 00:15:49]} {[%emt 00:00:17]} Rxa7 {[%clk 00:16:02]} {[%emt 00:00:07]} 28.
h4 {[%clk 00:15:52]} {[%emt 00:00:25]} Ra2+ {[%clk 00:15:04]} {[%emt 00:01:29]}
29. Kf3 {[%clk 00:16:12]} {[%emt 00:00:08]} Ra3+ {[%clk 00:13:31]} {[%emt
00:02:04]} 30. Kf2 {[%clk 00:16:35]} {[%emt 00:00:07]} Ra2+ {[%clk 00:13:55]}
{[%emt 00:00:07]} 31. Kf3 {[%clk 00:16:59]} {[%emt 00:00:05]} Ra3+ {[%clk
00:14:20]} {[%emt 00:00:05]} 32. Kf2 {[%clk 00:17:26]} {[%emt 00:00:03]} Ra2+
{[%clk 00:14:44]} {[%emt 00:00:07]} 33. Kf3 {[%clk 00:17:52]} {[%emt 00:00:03]}
Ra3+ {[%clk 00:15:08]} {[%emt 00:00:06]} 34. Kf2 {[%clk 00:18:14]} {[%emt
00:00:05]} Ra2+ {[%clk 00:15:18]} {[%emt 00:00:23]} 35. Kf3 {[%clk 00:18:18]}
{[%emt 00:00:09]} 1/2-1/2

[Event "Swedish Chess Championship 2021: Sverigemastarklassen"]
[Site "Scandic Helsingborg Nord, Florettgatan 41, Helsingborg, Sweden"]
[Date "2021.07.03"]
[Round "1.4"]
[White "Smith, Axel"]
[Black "Hillarp Persson, Tiger"]
[Result "1/2-1/2"]
[TimeControl "90 minutes for 40 moves + 30 minutes for the rest of the game + 30 seconds per move from move one."]
[WhiteTitle "GM"]
[BlackTitle "GM"]
[WhiteFideId "1707930"]
[BlackFideId "1700812"]
[WhiteElo "2453"]
[BlackElo "2542"]

1. d4 {[%clk 01:30:58]} Nf6 {[%clk 01:30:53]} {[%emt 00:00:07]} 2. c4 {[%clk
01:31:26]} {[%emt 00:00:03]} g6 {[%clk 01:31:14]} {[%emt 00:00:08]} 3. Nc3
{[%clk 01:31:53]} {[%emt 00:00:03]} Bg7 {[%clk 01:31:32]} {[%emt 00:00:12]} 4.
e4 {[%clk 01:32:19]} {[%emt 00:00:04]} d6 {[%clk 01:31:55]} {[%emt 00:00:07]} 5.
Be2 {[%clk 01:32:41]} {[%emt 00:00:08]} O-O {[%clk 01:32:07]} {[%emt 00:00:19]}
6. Be3 {[%clk 01:33:02]} {[%emt 00:00:09]} e5 {[%clk 01:27:41]} {[%emt
00:04:55]} 7. d5 {[%clk 01:33:25]} {[%emt 00:00:07]} Na6 {[%clk 01:26:48]}
{[%emt 00:01:23]} 8. g4 {[%clk 01:33:01]} {[%emt 00:00:54]} Nc5 {[%clk
01:26:49]} {[%emt 00:00:30]} 9. f3 {[%clk 01:33:09]} {[%emt 00:00:22]} a5
{[%clk 01:26:24]} {[%emt 00:00:55]} 10. h4 {[%clk 01:32:48]} {[%emt 00:00:50]}
h5 {[%clk 01:25:21]} {[%emt 00:01:33]} 11. g5 {[%clk 01:33:16]} {[%emt
00:00:03]} Ne8 {[%clk 00:59:11]} {[%emt 00:26:40]} 12. Qd2 {[%clk 01:27:37]}
{[%emt 00:06:08]} Ra6 {[%clk 00:44:01]} {[%emt 00:15:40]} 13. Nh3 {[%clk
01:22:17]} {[%emt 00:05:49]} c6 {[%clk 00:42:24]} {[%emt 00:02:08]} 14. O-O-O
{[%clk 01:17:32]} {[%emt 00:05:15]} a4 {[%clk 00:36:22]} {[%emt 00:06:32]} 15.
Nf2 {[%clk 01:04:15]} {[%emt 00:13:48]} Qa5 {[%clk 00:29:57]} {[%emt 00:06:55]}
16. Nb1 {[%clk 00:59:43]} {[%emt 00:05:02]} Qd8 {[%clk 00:24:39]} {[%emt
00:05:47]} 17. Na3 {[%clk 00:51:36]} {[%emt 00:08:38]} Kh7 {[%clk 00:18:27]}
{[%emt 00:06:41]} 18. Kb1 {[%clk 00:49:39]} {[%emt 00:02:28]} Qa5 {[%clk
00:14:22]} {[%emt 00:04:35]} 19. Qxa5 {[%clk 00:37:06]} {[%emt 00:13:03]} Rxa5
{[%clk 00:14:44]} {[%emt 00:00:07]} 20. Rd2 {[%clk 00:37:23]} {[%emt 00:00:13]}
f6 {[%clk 00:14:35]} {[%emt 00:00:39]} 21. gxf6 {[%clk 00:34:31]} {[%emt
00:03:22]} Rxf6 {[%clk 00:14:48]} {[%emt 00:00:16]} 22. Nc2 {[%clk 00:29:06]}
{[%emt 00:05:56]} Bh6 {[%clk 00:14:15]} {[%emt 00:01:03]} 23. Bxh6 {[%clk
00:24:21]} {[%emt 00:05:15]} Kxh6 {[%clk 00:14:38]} {[%emt 00:00:07]} 24. Nb4
{[%clk 00:24:41]} {[%emt 00:00:11]} Bd7 {[%clk 00:14:40]} {[%emt 00:00:27]} 25.
Nh3 {[%clk 00:16:09]} {[%emt 00:09:02]} Bxh3 {[%clk 00:14:50]} {[%emt
00:00:20]} 26. Rxh3 {[%clk 00:16:37]} {[%emt 00:00:02]} cxd5 {[%clk 00:14:55]}
{[%emt 00:00:24]} 27. cxd5 {[%clk 00:16:55]} {[%emt 00:00:13]} Ra8 {[%clk
00:12:26]} {[%emt 00:02:59]} 28. Nd3 {[%clk 00:13:18]} {[%emt 00:04:07]} b6
{[%clk 00:11:07]} {[%emt 00:01:48]} 29. Nf2 {[%clk 00:12:34]} {[%emt 00:01:14]}
Rf7 {[%clk 00:10:52]} {[%emt 00:00:45]} 30. Rd1 {[%clk 00:12:11]} {[%emt
00:00:53]} Nf6 {[%clk 00:10:03]} {[%emt 00:01:19]} 31. Rg1 {[%clk 00:07:01]}
{[%emt 00:05:40]} Rg8 {[%clk 00:09:55]} {[%emt 00:00:38]} 32. Rhg3 {[%clk
00:07:25]} {[%emt 00:00:06]} Nh7 {[%clk 00:10:10]} {[%emt 00:00:14]} 33. Nh3
{[%clk 00:07:41]} {[%emt 00:00:15]} Rfg7 {[%clk 00:08:43]} {[%emt 00:01:56]} 34.
Ng5 {[%clk 00:08:09]} {[%emt 00:00:03]} Nxg5 {[%clk 00:08:38]} {[%emt
00:00:34]} 35. hxg5+ {[%clk 00:08:36]} {[%emt 00:00:03]} Kh7 {[%clk 00:08:58]}
{[%emt 00:00:10]} 36. Rc1 {[%clk 00:07:09]} {[%emt 00:01:57]} Ra7 {[%clk
00:07:56]} {[%emt 00:01:32]} 37. Rc3 {[%clk 00:04:54]} {[%emt 00:02:45]} Rb8
{[%clk 00:07:42]} {[%emt 00:00:44]} 38. Rg1 {[%clk 00:04:59]} {[%emt 00:00:25]}
b5 {[%clk 00:07:53]} {[%emt 00:00:19]} 39. Kc1 {[%clk 00:01:47]} {[%emt
00:03:43]} b4 {[%clk 00:06:50]} {[%emt 00:01:33]} 40. Rc4 {[%clk 00:02:13]}
{[%emt 00:00:04]} a3 {[%clk 00:04:55]} {[%emt 00:02:25]} 41. b3 {[%clk
00:01:38]} {[%emt 00:01:05]} Rf7 {[%clk 00:04:15]} {[%emt 00:01:09]} 42. Kd2
{[%clk 00:00:48]} {[%emt 00:01:20]} Kg7 {[%clk 00:02:09]} {[%emt 00:02:35]} 43.
Ke3 {[%clk 00:27:40]} {[%emt 00:03:39]} Rb5 {[%clk 00:22:21]} {[%emt 00:10:18]}
1/2-1/2

[Event "Swedish Chess Championship 2021: Sverigemastarklassen"]
[Site "Scandic Helsingborg Nord, Florettgatan 41, Helsingborg, Sweden"]
[Date "2021.07.03"]
[Round "1.5"]
[White "Seo, Jung Min"]
[Black "Lokander, Martin"]
[Result "1/2-1/2"]
[TimeControl "90 minutes for 40 moves + 30 minutes for the rest of the game + 30 seconds per move from move one."]
[WhiteTitle "IM"]
[BlackTitle "IM"]
[WhiteFideId "1734687"]
[BlackFideId "1709569"]
[WhiteElo "2453"]
[BlackElo "2437"]

1. e4 {[%clk 01:30:57]} {[%emt 00:00:01]} e5 {[%clk 01:30:32]} {[%emt
00:00:28]} 2. Nf3 {[%clk 01:31:04]} {[%emt 00:00:22]} d6 {[%clk 01:30:37]}
{[%emt 00:00:26]} 3. d4 {[%clk 01:29:35]} {[%emt 00:02:00]} exd4 {[%clk
01:30:58]} {[%emt 00:00:08]} 4. Nxd4 {[%clk 01:30:02]} {[%emt 00:00:03]} Nf6
{[%clk 01:31:13]} {[%emt 00:00:14]} 5. Nc3 {[%clk 01:30:26]} {[%emt 00:00:06]}
Be7 {[%clk 01:31:19]} {[%emt 00:00:24]} 6. g3 {[%clk 01:30:20]} {[%emt
00:00:36]} d5 {[%clk 01:31:31]} {[%emt 00:00:19]} 7. e5 {[%clk 01:29:53]}
{[%emt 00:00:56]} Ng4 {[%clk 01:31:55]} {[%emt 00:00:06]} 8. Bg2 {[%clk
01:30:08]} {[%emt 00:00:16]} Nxe5 {[%clk 01:32:07]} {[%emt 00:00:18]} 9. Nxd5
{[%clk 01:29:37]} {[%emt 00:01:01]} Bg4 {[%clk 01:32:27]} {[%emt 00:00:09]} 10.
Qd2 {[%clk 01:22:09]} {[%emt 00:07:58]} Bh3 {[%clk 01:32:15]} {[%emt 00:00:42]}
11. Be4 {[%clk 01:21:04]} {[%emt 00:01:35]} Nbc6 {[%clk 01:27:05]} {[%emt
00:05:40]} 12. Nxc6 {[%clk 01:19:47]} {[%emt 00:01:47]} Nxc6 {[%clk 01:15:01]}
{[%emt 00:12:34]} 13. Nf4 {[%clk 01:19:48]} {[%emt 00:00:29]} Bg4 {[%clk
01:05:02]} {[%emt 00:10:29]} 14. O-O {[%clk 01:14:28]} {[%emt 00:05:50]} O-O
{[%clk 01:01:13]} {[%emt 00:04:19]} 15. h3 {[%clk 00:55:23]} {[%emt 00:19:35]}
Qxd2 {[%clk 00:59:51]} {[%emt 00:01:52]} 16. Bxd2 {[%clk 00:55:45]} {[%emt
00:00:08]} Bd7 {[%clk 00:59:40]} {[%emt 00:00:41]} 17. Rfe1 {[%clk 00:50:29]}
{[%emt 00:05:46]} Bd6 {[%clk 00:59:06]} {[%emt 00:01:03]} 18. Kg2 {[%clk
00:49:21]} {[%emt 00:01:39]} Rfe8 {[%clk 00:58:25]} {[%emt 00:01:11]} 19. Bc3
{[%clk 00:47:29]} {[%emt 00:02:22]} Rab8 {[%clk 00:52:29]} {[%emt 00:06:25]} 20.
Nd3 {[%clk 00:45:01]} {[%emt 00:02:58]} Re7 {[%clk 00:46:20]} {[%emt 00:06:40]}
21. Bf3 {[%clk 00:43:49]} {[%emt 00:01:42]} Rbe8 {[%clk 00:45:28]} {[%emt
00:01:22]} 22. Rxe7 {[%clk 00:44:12]} {[%emt 00:00:07]} Rxe7 {[%clk 00:45:52]}
{[%emt 00:00:05]} 23. h4 {[%clk 00:42:26]} {[%emt 00:02:15]} b6 {[%clk
00:43:02]} {[%emt 00:03:21]} 24. Rd1 {[%clk 00:42:18]} {[%emt 00:00:38]} Re8
{[%clk 00:34:58]} {[%emt 00:08:35]} 25. a3 {[%clk 00:33:13]} {[%emt 00:09:35]}
Kf8 {[%clk 00:31:42]} {[%emt 00:03:45]} 26. Rd2 {[%clk 00:24:33]} {[%emt
00:09:09]} h6 {[%clk 00:30:44]} {[%emt 00:01:28]} 27. Rd1 {[%clk 00:24:55]}
{[%emt 00:00:08]} Rd8 {[%clk 00:28:18]} {[%emt 00:02:56]} 28. Kg1 {[%clk
00:20:59]} {[%emt 00:04:26]} Re8 {[%clk 00:25:09]} {[%emt 00:03:40]} 29. Kg2
{[%clk 00:21:21]} {[%emt 00:00:06]} Rd8 {[%clk 00:25:35]} {[%emt 00:00:05]} 30.
Kg1 {[%clk 00:21:46]} {[%emt 00:00:04]} Re8 {[%clk 00:26:01]} {[%emt 00:00:05]}
31. Kg2 {[%clk 00:22:13]} {[%emt 00:00:03]} 1/2-1/2